[Event "*** MasterClass Titled Tuesday Blitz"]
[Site "Chess.com"]
[Date "2017.10.03"]
[Round "2"]
[White "chesstatour"]
[Black "guilhermedeola"]
[Result "0-1"]
[WhiteElo "1846"]
[BlackElo "1943"]
[TimeControl "180+2"]
[EndTime "13:24:08 PDT"]
[Termination "guilhermedeola won by resignation"]

1. c4 {[%clk 0:03:01.9]} 1... g6 {[%clk 0:02:55.3]} 2. Nc3 {[%clk 0:03:03.8]}
2... Bg7 {[%clk 0:02:55.8]} 3. e4 {[%clk 0:03:05.2]} 3... c5 {[%clk 0:02:52.9]}
4. d3 {[%clk 0:03:06.3]} 4... Nc6 {[%clk 0:02:53.2]} 5. f4 {[%clk 0:03:07.7]}
5... d6 {[%clk 0:02:52.7]} 6. Nf3 {[%clk 0:03:09.2]} 6... Nf6 {[%clk 0:02:53.6]}
7. Be2 {[%clk 0:03:10.7]} 7... O-O {[%clk 0:02:54.9]} 8. O-O {[%clk 0:03:12.3]}
8... Ne8 {[%clk 0:02:56.3]} 9. Be3 {[%clk 0:03:11.9]} 9... Nd4 {[%clk
0:02:54.1]} 10. Qd2 {[%clk 0:03:08]} 10... Nc7 {[%clk 0:02:54.3]} 11. Rae1
{[%clk 0:03:05.4]} 11... a6 {[%clk 0:02:54.8]} 12. Nd5 {[%clk 0:02:58.6]} 12...
Nce6 {[%clk 0:02:51]} 13. Kh1 {[%clk 0:02:41.2]} 13... Nxe2 {[%clk 0:02:47.5]}
14. Qxe2 {[%clk 0:02:38.8]} 14... Nd4 {[%clk 0:02:48.6]} 15. Qf2 {[%clk
0:02:39.4]} 15... b5 {[%clk 0:02:45.8]} 16. Nxd4 {[%clk 0:02:33.5]} 16... cxd4
{[%clk 0:02:46.3]} 17. Bxd4 {[%clk 0:02:34.6]} 17... e5 {[%clk 0:02:31.6]} 18.
fxe5 {[%clk 0:02:28.3]} 18... dxe5 {[%clk 0:02:31.2]} 19. Bc5 {[%clk 0:02:25]}
19... bxc4 {[%clk 0:02:26.5]} 20. dxc4 {[%clk 0:02:26.9]} 20... Re8 {[%clk
0:02:13.7]} 21. Qxf7+ {[%clk 0:02:22.9]} 21... Kh8 {[%clk 0:02:15.1]} 22. Bb6
{[%clk 0:01:50.9]} 22... Qd7 {[%clk 0:01:55.9]} 23. Qxd7 {[%clk 0:01:31.3]}
23... Bxd7 {[%clk 0:01:56.7]} 24. Nc7 {[%clk 0:01:32.6]} 24... Rab8 {[%clk
0:01:50.4]} 25. Nxe8 {[%clk 0:01:32]} 25... Bxe8 {[%clk 0:01:50.3]} 26. c5
{[%clk 0:01:13.6]} 26... Kg8 {[%clk 0:01:51.4]} 27. b3 {[%clk 0:01:11.5]} 27...
Bc6 {[%clk 0:01:51.9]} 28. Rf2 {[%clk 0:01:04.7]} 28... Bh6 {[%clk 0:01:49.8]}
29. Bc7 {[%clk 0:00:59.7]} 29... Re8 {[%clk 0:01:48.1]} 30. Rf6 {[%clk
0:00:53.4]} 30... Bb5 {[%clk 0:01:40.5]} 31. a4 {[%clk 0:00:50]} 31... Bd3
{[%clk 0:01:39.1]} 32. Rd6 {[%clk 0:00:36]} 32... Bc2 {[%clk 0:01:37.2]} 33.
Rxa6 {[%clk 0:00:27.3]} 33... Rf8 {[%clk 0:01:37.5]} 34. Kg1 {[%clk 0:00:14.1]}
34... Bd2 {[%clk 0:01:30]} 35. Ra1 {[%clk 0:00:09.7]} 35... Be3+ {[%clk
0:01:26.2]} 36. Kh1 {[%clk 0:00:10.4]} 36... Bxc5 {[%clk 0:01:24.8]} 37. Bxe5
{[%clk 0:00:09.1]} 37... Rf2 {[%clk 0:01:15.3]} 38. Bg3 {[%clk 0:00:07.8]} 38...
Re2 {[%clk 0:01:13.6]} 39. h3 {[%clk 0:00:06.5]} 39... Bxe4 {[%clk 0:01:13.7]}
40. Rg1 {[%clk 0:00:06.8]} 40... Bxg1 {[%clk 0:00:59.7]} 41. Kxg1 {[%clk
0:00:08.7]} 41... Rxg2+ {[%clk 0:01:00.3]} 42. Kf1 {[%clk 0:00:08]} 42... Rxg3
{[%clk 0:01:01.5]} 43. Rb6 {[%clk 0:00:08.5]} 43... Rxh3 {[%clk 0:00:57.8]} 44.
a5 {[%clk 0:00:08.2]} 44... Rh5 {[%clk 0:00:53.2]} 45. b4 {[%clk 0:00:08]} 45...
Rb5 {[%clk 0:00:52.5]} 46. Ra6 {[%clk 0:00:02.5]} 46... Rxb4 {[%clk 0:00:51.7]}
47. Kf2 {[%clk 0:00:04.1]} 47... Ra4 {[%clk 0:00:50.2]} 48. Ra7 {[%clk
0:00:04.6]} 0-1

[Event "*** MasterClass Titled Tuesday Blitz"]
[Site "Chess.com"]
[Date "2017.10.03"]
[Round "2"]
[White "DrVelja"]
[Black "Paralinch"]
[Result "0-1"]
[WhiteElo "2503"]
[BlackElo "2671"]
[TimeControl "180+2"]
[EndTime "13:24:12 PDT"]
[Termination "Paralinch won by resignation"]

1. e4 {[%clk 0:03:01.9]} 1... c6 {[%clk 0:03:01.1]} 2. d4 {[%clk 0:03:01.9]}
2... d5 {[%clk 0:03:02.7]} 3. e5 {[%clk 0:03:02.3]} 3... Bf5 {[%clk 0:03:03.5]}
4. h4 {[%clk 0:03:01.5]} 4... Qb6 {[%clk 0:03:03.9]} 5. h5 {[%clk 0:02:52.4]}
5... c5 {[%clk 0:02:59.3]} 6. g4 {[%clk 0:02:38.4]} 6... Bd7 {[%clk 0:03:00]} 7.
dxc5 {[%clk 0:02:18]} 7... Qxc5 {[%clk 0:02:46.2]} 8. c3 {[%clk 0:01:54.9]} 8...
Nc6 {[%clk 0:02:43.8]} 9. Be3 {[%clk 0:01:49.9]} 9... Qa5 {[%clk 0:02:44.7]} 10.
f4 {[%clk 0:01:45.9]} 10... d4 {[%clk 0:02:29.7]} 11. Bxd4 {[%clk 0:01:43.6]}
11... Nxd4 {[%clk 0:02:30.3]} 12. Qxd4 {[%clk 0:01:43]} 12... Bxg4 {[%clk
0:02:30.8]} 13. Na3 {[%clk 0:01:29.9]} 13... a6 {[%clk 0:02:22.5]} 14. Nc4
{[%clk 0:01:08.9]} 14... Qc7 {[%clk 0:02:10.2]} 15. Qe4 {[%clk 0:00:49.5]} 15...
e6 {[%clk 0:02:00.6]} 16. Bh3 {[%clk 0:00:34.4]} 16... Nh6 {[%clk 0:01:38.8]}
17. Bxg4 {[%clk 0:00:30.4]} 17... Nxg4 {[%clk 0:01:40.7]} 18. Nh3 {[%clk
0:00:26.9]} 18... Rd8 {[%clk 0:01:29.2]} 19. Rd1 {[%clk 0:00:21.5]} 19... Rxd1+
{[%clk 0:01:16.2]} 20. Kxd1 {[%clk 0:00:23.4]} 20... Nh6 {[%clk 0:01:13.7]} 21.
Kc1 {[%clk 0:00:19.4]} 21... Nf5 {[%clk 0:01:14.8]} 22. Rd1 {[%clk 0:00:18.9]}
22... Be7 {[%clk 0:01:14.8]} 23. Ne3 {[%clk 0:00:14.1]} 23... Nxe3 {[%clk
0:01:07.2]} 24. Qxe3 {[%clk 0:00:16]} 24... O-O {[%clk 0:01:03.7]} 25. Nf2
{[%clk 0:00:17]} 25... Bc5 {[%clk 0:00:58.7]} 26. Qf3 {[%clk 0:00:17.5]} 26...
Bxf2 {[%clk 0:00:58.9]} 27. Qxf2 {[%clk 0:00:19.4]} 27... Rd8 {[%clk 0:00:53.5]}
28. Rg1 {[%clk 0:00:20.9]} 28... Qd7 {[%clk 0:00:47.6]} 29. Qg2 {[%clk
0:00:19.1]} 29... g6 {[%clk 0:00:45.3]} 30. hxg6 {[%clk 0:00:14.7]} 30... fxg6
{[%clk 0:00:44.8]} 31. Qe2 {[%clk 0:00:09.2]} 31... Qd3 {[%clk 0:00:37.2]} 32.
Re1 {[%clk 0:00:06.2]} 32... Qxe2 {[%clk 0:00:33.9]} 33. Rxe2 {[%clk 0:00:08.1]}
33... h5 {[%clk 0:00:35.1]} 34. Kc2 {[%clk 0:00:04.8]} 34... Kg7 {[%clk
0:00:36.2]} 35. Rf2 {[%clk 0:00:03.8]} 35... Kh6 {[%clk 0:00:35.7]} 36. c4
{[%clk 0:00:04.9]} 36... h4 {[%clk 0:00:36.8]} 37. b4 {[%clk 0:00:04.7]} 37...
Kh5 {[%clk 0:00:29]} 38. Rg2 {[%clk 0:00:06.2]} 38... h3 {[%clk 0:00:27.5]} 39.
Rg5+ {[%clk 0:00:06.7]} 39... Kh4 {[%clk 0:00:28.2]} 40. Rxg6 {[%clk 0:00:08.3]}
40... Rh8 {[%clk 0:00:29.9]} 41. Rg1 {[%clk 0:00:03.6]} 41... h2 {[%clk
0:00:31.2]} 42. Rh1 {[%clk 0:00:04.6]} 42... Kg4 {[%clk 0:00:32.7]} 43. Kd3
{[%clk 0:00:02.9]} 43... Kxf4 {[%clk 0:00:26.1]} 44. c5 {[%clk 0:00:03]} 44...
Kxe5 {[%clk 0:00:22.5]} 45. a4 {[%clk 0:00:04.1]} 45... Kd5 {[%clk 0:00:23]} 0-1

[Event "*** MasterClass Titled Tuesday Blitz"]
[Site "Chess.com"]
[Date "2017.10.03"]
[Round "2"]
[White "ruifeng"]
[Black "Incognito_Knight"]
[Result "0-1"]
[WhiteElo "2368"]
[BlackElo "2456"]
[TimeControl "180+2"]
[EndTime "13:24:13 PDT"]
[Termination "Incognito_Knight won by checkmate"]

1. d4 {[%clk 0:03:01.9]} 1... Nf6 {[%clk 0:03:00]} 2. Bf4 {[%clk 0:03:02.7]}
2... b6 {[%clk 0:02:59.8]} 3. Nc3 {[%clk 0:02:59.4]} 3... Bb7 {[%clk 0:03:00.6]}
4. f3 {[%clk 0:02:59.7]} 4... c5 {[%clk 0:02:59.8]} 5. d5 {[%clk 0:02:59.3]}
5... e6 {[%clk 0:02:51.4]} 6. e4 {[%clk 0:02:33.1]} 6... exd5 {[%clk 0:02:45.5]}
7. exd5 {[%clk 0:02:34.3]} 7... d6 {[%clk 0:02:46.5]} 8. Qd2 {[%clk 0:02:26.7]}
8... Be7 {[%clk 0:02:43.7]} 9. Nge2 {[%clk 0:02:21.5]} 9... O-O {[%clk
0:02:42.7]} 10. Ng3 {[%clk 0:02:22.7]} 10... Re8 {[%clk 0:02:41.3]} 11. Be2
{[%clk 0:02:22.7]} 11... a6 {[%clk 0:02:40.7]} 12. a4 {[%clk 0:02:23.2]} 12...
Bf8 {[%clk 0:02:38.8]} 13. O-O {[%clk 0:02:24.3]} 13... Nbd7 {[%clk 0:02:39.8]}
14. Rfe1 {[%clk 0:02:21.9]} 14... Qc7 {[%clk 0:02:34.2]} 15. Nf5 {[%clk
0:02:18.6]} 15... Ne5 {[%clk 0:02:20]} 16. Bf1 {[%clk 0:02:15.8]} 16... Ng6
{[%clk 0:02:17.6]} 17. Bg3 {[%clk 0:02:15.9]} 17... Qd7 {[%clk 0:02:13.7]} 18.
Ne3 {[%clk 0:02:12.6]} 18... Ne5 {[%clk 0:02:09.5]} 19. h3 {[%clk 0:02:09.3]}
19... Qc7 {[%clk 0:01:59.9]} 20. Nc4 {[%clk 0:01:46.7]} 20... Nxc4 {[%clk
0:01:57.7]} 21. Bxc4 {[%clk 0:01:44.5]} 21... g6 {[%clk 0:01:58.4]} 22. Bh2
{[%clk 0:01:27.2]} 22... Bg7 {[%clk 0:01:58.5]} 23. Qf4 {[%clk 0:01:28.3]} 23...
Rad8 {[%clk 0:01:54.7]} 24. Kh1 {[%clk 0:01:24.8]} 24... Rxe1+ {[%clk
0:01:46.4]} 25. Rxe1 {[%clk 0:01:25.2]} 25... Nh5 {[%clk 0:01:48]} 26. Qd2
{[%clk 0:01:25.7]} 26... Qd7 {[%clk 0:01:43.9]} 27. g4 {[%clk 0:01:20.2]} 27...
Nf6 {[%clk 0:01:41.9]} 28. Bf4 {[%clk 0:01:19.7]} 28... Re8 {[%clk 0:01:40.1]}
29. Kg2 {[%clk 0:01:17]} 29... Rxe1 {[%clk 0:01:34.8]} 30. Qxe1 {[%clk
0:01:18.1]} 30... Ne8 {[%clk 0:01:36]} 31. Qd2 {[%clk 0:01:09.3]} 31... Nc7
{[%clk 0:01:11]} 32. Ne4 {[%clk 0:01:04.7]} 32... b5 {[%clk 0:01:12.2]} 33. axb5
{[%clk 0:01:01.7]} 33... axb5 {[%clk 0:01:13.3]} 34. Nxd6 {[%clk 0:00:53.9]}
34... bxc4 {[%clk 0:01:13.2]} 35. Nxb7 {[%clk 0:00:54.9]} 35... Nxd5 {[%clk
0:01:07.6]} 36. Nxc5 {[%clk 0:00:55.9]} 36... Qc6 {[%clk 0:01:03.1]} 37. Ne4
{[%clk 0:00:39.4]} 37... f5 {[%clk 0:01:02.5]} 38. Nc3 {[%clk 0:00:34.1]} 38...
Bxc3 {[%clk 0:00:59.2]} 39. bxc3 {[%clk 0:00:35.1]} 39... Qe6 {[%clk 0:00:54.2]}
40. Kg3 {[%clk 0:00:23.7]} 40... Kf7 {[%clk 0:00:52.5]} 41. Qd4 {[%clk
0:00:23.1]} 41... Qe1+ {[%clk 0:00:52.6]} 42. Kg2 {[%clk 0:00:20.9]} 42... Qe2+
{[%clk 0:00:42.8]} 43. Kg3 {[%clk 0:00:22.2]} 43... Ke6 {[%clk 0:00:37.2]} 44.
Kh4 {[%clk 0:00:10.7]} 44... Qxf3 {[%clk 0:00:31.1]} 45. Qe5+ {[%clk 0:00:11.3]}
45... Kf7 {[%clk 0:00:32.3]} 46. Bg3 {[%clk 0:00:06.9]} 46... f4 {[%clk
0:00:29.5]} 47. Qd6 {[%clk 0:00:03.6]} 47... Qxg3+ {[%clk 0:00:24.8]} 48. Kg5
{[%clk 0:00:04.5]} 48... h6+ {[%clk 0:00:26.4]} 49. Kxh6 {[%clk 0:00:05.6]}
49... Qh4# {[%clk 0:00:26.9]} 0-1

[Event "*** MasterClass Titled Tuesday Blitz"]
[Site "Chess.com"]
[Date "2017.10.03"]
[Round "2"]
[White "VojtechPlat"]
[Black "Bengalas"]
[Result "1/2-1/2"]
[WhiteElo "2682"]
[BlackElo "2521"]
[TimeControl "180+2"]
[EndTime "13:24:23 PDT"]
[Termination "Game drawn by repetition"]

1. e4 {[%clk 0:03:01.9]} 1... c5 {[%clk 0:03:00.6]} 2. Nf3 {[%clk 0:03:02.2]}
2... d6 {[%clk 0:03:01.7]} 3. d4 {[%clk 0:03:02.5]} 3... cxd4 {[%clk 0:03:03.1]}
4. Qxd4 {[%clk 0:03:04.1]} 4... Nc6 {[%clk 0:03:01.9]} 5. Bb5 {[%clk 0:03:04.6]}
5... Bd7 {[%clk 0:03:03.4]} 6. Bxc6 {[%clk 0:03:05.8]} 6... Bxc6 {[%clk
0:03:04.8]} 7. c4 {[%clk 0:03:05.5]} 7... Nf6 {[%clk 0:03:04.4]} 8. Nc3 {[%clk
0:03:06.4]} 8... g6 {[%clk 0:03:04.9]} 9. Bg5 {[%clk 0:03:03.5]} 9... Bg7 {[%clk
0:03:05.8]} 10. O-O {[%clk 0:03:03.5]} 10... O-O {[%clk 0:03:05.6]} 11. Qd3
{[%clk 0:03:04.2]} 11... a6 {[%clk 0:03:00.2]} 12. Rfe1 {[%clk 0:03:00.6]} 12...
Nd7 {[%clk 0:02:44.4]} 13. Rad1 {[%clk 0:02:46.2]} 13... Nc5 {[%clk 0:02:19.2]}
14. Qb1 {[%clk 0:02:46.2]} 14... Bxc3 {[%clk 0:02:13]} 15. bxc3 {[%clk
0:02:46.5]} 15... f6 {[%clk 0:02:12.5]} 16. Bh6 {[%clk 0:02:45.3]} 16... Rf7
{[%clk 0:02:08.4]} 17. Nd4 {[%clk 0:02:46.2]} 17... Rc8 {[%clk 0:01:42.6]} 18.
f3 {[%clk 0:02:39.9]} 18... Qa5 {[%clk 0:01:27.2]} 19. Qb4 {[%clk 0:02:33.9]}
19... Qa4 {[%clk 0:01:19.3]} 20. Be3 {[%clk 0:01:50.9]} 20... a5 {[%clk
0:01:07.5]} 21. Qb6 {[%clk 0:01:45.2]} 21... Qxc4 {[%clk 0:01:03.8]} 22. Nxc6
{[%clk 0:01:34.7]} 22... Rxc6 {[%clk 0:01:01.9]} 23. Qxa5 {[%clk 0:01:33.3]}
23... Kg7 {[%clk 0:00:33.8]} 24. Rd4 {[%clk 0:01:10.3]} 24... Qe6 {[%clk
0:00:34]} 25. Rd2 {[%clk 0:01:02.2]} 25... Ra6 {[%clk 0:00:31.7]} 26. Qb5 {[%clk
0:01:01.4]} 26... Rxa2 {[%clk 0:00:32.3]} 27. Rxa2 {[%clk 0:01:01.1]} 27... Qxa2
{[%clk 0:00:33.8]} 28. Bxc5 {[%clk 0:00:58.2]} 28... dxc5 {[%clk 0:00:34.9]} 29.
Qxc5 {[%clk 0:00:55.6]} 29... e5 {[%clk 0:00:35.6]} 30. Qd6 {[%clk 0:00:52.4]}
30... Qa5 {[%clk 0:00:31.9]} 31. Re3 {[%clk 0:00:46.3]} 31... Qc7 {[%clk
0:00:29.5]} 32. Qxc7 {[%clk 0:00:40.1]} 32... Rxc7 {[%clk 0:00:29.2]} 33. Rd3
{[%clk 0:00:40.3]} 33... Kf7 {[%clk 0:00:29.7]} 34. Kf2 {[%clk 0:00:41.2]} 34...
Ke7 {[%clk 0:00:30.5]} 35. Ke3 {[%clk 0:00:42.2]} 35... Rd7 {[%clk 0:00:30.2]}
36. Rxd7+ {[%clk 0:00:34.7]} 36... Kxd7 {[%clk 0:00:31.4]} 37. Kd3 {[%clk
0:00:36.1]} 37... Kc6 {[%clk 0:00:24]} 38. Kc4 {[%clk 0:00:37]} 38... b5+ {[%clk
0:00:20.8]} 39. Kb4 {[%clk 0:00:37.9]} 39... Kb6 {[%clk 0:00:21.8]} 40. c4
{[%clk 0:00:39.2]} 40... bxc4 {[%clk 0:00:22.8]} 41. Kxc4 {[%clk 0:00:40.3]}
41... Kc6 {[%clk 0:00:24]} 42. g3 {[%clk 0:00:38.2]} 42... h6 {[%clk 0:00:24.1]}
43. g4 {[%clk 0:00:35.1]} 43... h5 {[%clk 0:00:22.5]} 44. gxh5 {[%clk
0:00:35.4]} 44... gxh5 {[%clk 0:00:23.6]} 45. h4 {[%clk 0:00:36.2]} 45... Kd6
{[%clk 0:00:24.6]} 46. Kb5 {[%clk 0:00:37.3]} 46... Kd7 {[%clk 0:00:21]} 47. Kb6
{[%clk 0:00:36.3]} 47... Kd6 {[%clk 0:00:22.1]} 48. Kb5 {[%clk 0:00:37.1]} 48...
Kd7 {[%clk 0:00:22.8]} 49. Kc5 {[%clk 0:00:38.3]} 49... Kc7 {[%clk 0:00:24]} 50.
Kd5 {[%clk 0:00:34.1]} 50... Kd7 {[%clk 0:00:25]} 51. Kc5 {[%clk 0:00:35.2]}
51... Kc7 {[%clk 0:00:25.8]} 52. Kb5 {[%clk 0:00:28.1]} 52... Kb7 {[%clk
0:00:26.7]} 53. Kc5 {[%clk 0:00:26.2]} 53... Kc7 {[%clk 0:00:27.7]} 54. Kd5
{[%clk 0:00:27.4]} 54... Kd7 {[%clk 0:00:28.6]} 55. Kc5 {[%clk 0:00:29]} 55...
Kc7 {[%clk 0:00:29.7]} 56. Kd5 {[%clk 0:00:30.6]} 56... Kd7 {[%clk 0:00:30.8]}
57. Kc5 {[%clk 0:00:32.2]} 57... Kc7 {[%clk 0:00:32]} 1/2-1/2

[Event "*** MasterClass Titled Tuesday Blitz"]
[Site "Chess.com"]
[Date "2017.10.03"]
[Round "2"]
[White "bilelou"]
[Black "plouarzel"]
[Result "1/2-1/2"]
[WhiteElo "2429"]
[BlackElo "2473"]
[TimeControl "180+2"]
[EndTime "13:24:24 PDT"]
[Termination "Game drawn by repetition"]

1. e4 {[%clk 0:03:00.8]} 1... d6 {[%clk 0:02:45.5]} 2. d4 {[%clk 0:03:01]} 2...
Nf6 {[%clk 0:02:45.8]} 3. Nc3 {[%clk 0:03:00.2]} 3... e5 {[%clk 0:02:46.8]} 4.
Nf3 {[%clk 0:03:00.4]} 4... Nbd7 {[%clk 0:02:47.3]} 5. Bc4 {[%clk 0:03:01.9]}
5... exd4 {[%clk 0:02:46.9]} 6. Nxd4 {[%clk 0:03:00.1]} 6... Nb6 {[%clk
0:02:48]} 7. Bd3 {[%clk 0:02:58.9]} 7... Be7 {[%clk 0:02:47.5]} 8. O-O {[%clk
0:02:59.9]} 8... O-O {[%clk 0:02:48.4]} 9. b3 {[%clk 0:03:00]} 9... c6 {[%clk
0:02:45.9]} 10. Bb2 {[%clk 0:03:00.8]} 10... d5 {[%clk 0:02:46.9]} 11. e5 {[%clk
0:02:48.9]} 11... Ne8 {[%clk 0:02:47.1]} 12. Re1 {[%clk 0:02:43.7]} 12... g6
{[%clk 0:02:46.7]} 13. h3 {[%clk 0:02:37.2]} 13... Ng7 {[%clk 0:02:47.5]} 14. a3
{[%clk 0:02:35]} 14... f6 {[%clk 0:02:45.6]} 15. Nf3 {[%clk 0:01:54.8]} 15...
fxe5 {[%clk 0:02:41.6]} 16. Nxe5 {[%clk 0:01:55.7]} 16... Bf6 {[%clk 0:02:41.7]}
17. Ne2 {[%clk 0:01:54.2]} 17... Qd6 {[%clk 0:02:03.7]} 18. f4 {[%clk 0:01:53]}
18... Nd7 {[%clk 0:02:03.1]} 19. Nxd7 {[%clk 0:01:22.5]} 19... Bxd7 {[%clk
0:02:05]} 20. Bxf6 {[%clk 0:01:22.3]} 20... Qxf6 {[%clk 0:02:04.8]} 21. Qd2
{[%clk 0:01:23.5]} 21... Rae8 {[%clk 0:02:01.7]} 22. Rf1 {[%clk 0:01:22.9]}
22... Nf5 {[%clk 0:02:00.2]} 23. Bxf5 {[%clk 0:01:22.1]} 23... Bxf5 {[%clk
0:01:58.5]} 24. Rae1 {[%clk 0:01:19]} 24... Qd6 {[%clk 0:01:42]} 25. b4 {[%clk
0:01:16.7]} 25... b6 {[%clk 0:01:28.6]} 26. c3 {[%clk 0:01:14.1]} 26... c5
{[%clk 0:01:24.9]} 27. Ng3 {[%clk 0:01:14.4]} 27... Rxe1 {[%clk 0:01:20.8]} 28.
Rxe1 {[%clk 0:01:15]} 28... d4 {[%clk 0:01:21.5]} 29. Re5 {[%clk 0:01:09.6]}
29... d3 {[%clk 0:00:55.3]} 30. Kh2 {[%clk 0:01:07.4]} 30... c4 {[%clk 0:00:54]}
31. Nf1 {[%clk 0:01:07.8]} 31... a6 {[%clk 0:00:49.2]} 32. a4 {[%clk 0:01:07.2]}
32... Bd7 {[%clk 0:00:49.5]} 33. b5 {[%clk 0:01:08.2]} 33... axb5 {[%clk
0:00:49.9]} 34. axb5 {[%clk 0:01:10.1]} 34... Ra8 {[%clk 0:00:39.9]} 35. Ne3
{[%clk 0:01:08.2]} 35... Be6 {[%clk 0:00:39.2]} 36. Re4 {[%clk 0:01:05.4]} 36...
Ra4 {[%clk 0:00:37.4]} 37. Rd4 {[%clk 0:01:03.8]} 37... Qc7 {[%clk 0:00:35.5]}
38. Qf2 {[%clk 0:00:59.7]} 38... Bf7 {[%clk 0:00:33.2]} 39. Qf3 {[%clk
0:00:55.4]} 39... Ra1 {[%clk 0:00:27.5]} 40. Qc6 {[%clk 0:00:50.2]} 40... Qe7
{[%clk 0:00:24.1]} 41. Re4 {[%clk 0:00:43.3]} 41... Qd8 {[%clk 0:00:25.6]} 42.
Rd4 {[%clk 0:00:34.1]} 42... Qe7 {[%clk 0:00:26.5]} 43. Qc8+ {[%clk 0:00:34.6]}
43... Kg7 {[%clk 0:00:25.2]} 44. Re4 {[%clk 0:00:35]} 44... Qd6 {[%clk
0:00:23.5]} 45. Qc6 {[%clk 0:00:26.3]} 45... Qd8 {[%clk 0:00:20.3]} 46. Rd4
{[%clk 0:00:18.7]} 46... Qe7 {[%clk 0:00:21.7]} 47. Re4 {[%clk 0:00:18.2]} 47...
Qd8 {[%clk 0:00:22.9]} 48. Rd4 {[%clk 0:00:19.5]} 48... Qe7 {[%clk 0:00:20.1]}
49. Re4 {[%clk 0:00:20.7]} 49... Qd8 {[%clk 0:00:18.1]} 50. Rd4 {[%clk
0:00:21.2]} 50... Qe7 {[%clk 0:00:19.5]} 1/2-1/2

[Event "*** MasterClass Titled Tuesday Blitz"]
[Site "Chess.com"]
[Date "2017.10.03"]
[Round "2"]
[White "MaxLeto"]
[Black "Aygehovit1992"]
[Result "1-0"]
[WhiteElo "2323"]
[BlackElo "2436"]
[TimeControl "180+2"]
[EndTime "13:24:24 PDT"]
[Termination "MaxLeto won by resignation"]

1. b3 {[%clk 0:02:48.1]} 1... e5 {[%clk 0:02:59.6]} 2. Bb2 {[%clk 0:02:47.1]}
2... Nc6 {[%clk 0:03:00.8]} 3. e3 {[%clk 0:02:47.8]} 3... Nf6 {[%clk 0:03:01.9]}
4. Bb5 {[%clk 0:02:46.7]} 4... Bd6 {[%clk 0:03:02.6]} 5. Na3 {[%clk 0:02:44.8]}
5... Na5 {[%clk 0:03:00.2]} 6. Nf3 {[%clk 0:02:33]} 6... Qe7 {[%clk 0:02:59.8]}
7. Qc1 {[%clk 0:02:23]} 7... c6 {[%clk 0:02:54.2]} 8. Be2 {[%clk 0:02:23.5]}
8... Bc7 {[%clk 0:02:50.1]} 9. c4 {[%clk 0:02:13.7]} 9... b6 {[%clk 0:02:47.2]}
10. Qc3 {[%clk 0:01:56.4]} 10... d6 {[%clk 0:02:47.2]} 11. d4 {[%clk 0:01:46.5]}
11... e4 {[%clk 0:02:48.1]} 12. Nd2 {[%clk 0:01:48.1]} 12... Bf5 {[%clk
0:02:43.7]} 13. d5 {[%clk 0:01:14.3]} 13... c5 {[%clk 0:02:41.7]} 14. h3 {[%clk
0:01:06.2]} 14... h5 {[%clk 0:02:41.8]} 15. O-O-O {[%clk 0:01:02.5]} 15... h4
{[%clk 0:02:43.1]} 16. Rdg1 {[%clk 0:00:56.6]} 16... a6 {[%clk 0:02:43.9]} 17.
g4 {[%clk 0:00:53.6]} 17... hxg3 {[%clk 0:02:45]} 18. Rxg3 {[%clk 0:00:54.6]}
18... Bg6 {[%clk 0:02:46]} 19. h4 {[%clk 0:00:43.6]} 19... O-O-O {[%clk
0:02:46.3]} 20. Nc2 {[%clk 0:00:31]} 20... Nb7 {[%clk 0:02:37]} 21. Ne1 {[%clk
0:00:31.3]} 21... Rh7 {[%clk 0:02:30.5]} 22. Ng2 {[%clk 0:00:30.3]} 22... b5
{[%clk 0:02:31.7]} 23. cxb5 {[%clk 0:00:10.5]} 23... Nxd5 {[%clk 0:02:31.9]} 24.
Qc4 {[%clk 0:00:08.2]} 24... Nb6 {[%clk 0:02:32]} 25. Qc2 {[%clk 0:00:08.9]}
25... axb5 {[%clk 0:02:31.7]} 26. Bxb5 {[%clk 0:00:10.8]} 26... d5 {[%clk
0:02:31.8]} 27. Kb1 {[%clk 0:00:11.2]} 27... Bxg3 {[%clk 0:02:32.2]} 28. fxg3
{[%clk 0:00:11.8]} 28... Kb8 {[%clk 0:02:30.9]} 29. Rc1 {[%clk 0:00:11.2]} 29...
Bf5 {[%clk 0:02:28.8]} 30. Nf4 {[%clk 0:00:12]} 30... Bc8 {[%clk 0:02:29.2]} 31.
a4 {[%clk 0:00:11.8]} 31... g5 {[%clk 0:02:12.1]} 32. hxg5 {[%clk 0:00:11.1]}
32... Qxg5 {[%clk 0:02:14]} 33. Nf1 {[%clk 0:00:03.6]} 33... Qe7 {[%clk
0:01:55.8]} 34. Ba3 {[%clk 0:00:03.8]} 34... Qc7 {[%clk 0:01:32.5]} 35. a5
{[%clk 0:00:03.2]} 35... Nxa5 {[%clk 0:01:30.5]} 36. Bxc5 {[%clk 0:00:04.8]}
36... Nb7 {[%clk 0:01:31.1]} 37. Bd4 {[%clk 0:00:04.5]} 37... Qxc2+ {[%clk
0:01:31.7]} 38. Rxc2 {[%clk 0:00:06.4]} 38... Rh1 {[%clk 0:01:32]} 39. Bxb6
{[%clk 0:00:06.4]} 39... Rdh8 {[%clk 0:01:29.1]} 40. Kb2 {[%clk 0:00:07]} 40...
Nd6 {[%clk 0:01:21]} 41. Bc6 {[%clk 0:00:08]} 41... Nf5 {[%clk 0:01:20.1]} 42.
Nxd5 {[%clk 0:00:09.2]} 42... Bb7 {[%clk 0:01:10.4]} 43. Bc7+ {[%clk 0:00:09.6]}
43... Ka8 {[%clk 0:01:07.7]} 44. Bxb7+ {[%clk 0:00:10.1]} 44... Kxb7 {[%clk
0:01:08.8]} 45. Nd2 {[%clk 0:00:11.8]} 45... Rc8 {[%clk 0:01:01.9]} 46. Nxe4
{[%clk 0:00:11.3]} 46... Rd1 {[%clk 0:00:48.9]} 47. Nc5+ {[%clk 0:00:11.7]}
47... Kc6 {[%clk 0:00:49.3]} 48. e4 {[%clk 0:00:13.3]} 48... Nd4 {[%clk
0:00:48.7]} 49. Rc4 {[%clk 0:00:14.5]} 49... Nb5 {[%clk 0:00:35.6]} 50. Na4+
{[%clk 0:00:13.2]} 50... Kb7 {[%clk 0:00:34.5]} 51. Rb4 {[%clk 0:00:14.3]} 51...
Ka6 {[%clk 0:00:32.4]} 52. Nc5+ {[%clk 0:00:14.1]} 52... Ka7 {[%clk 0:00:33.6]}
53. Rxb5 {[%clk 0:00:15.6]} 1-0